[Event "Titled Tuesday Blitz February 14 Late 2023"]
[White "Djabri,Massinas"]
[Black "gshwbedhkhd"]
[WhiteFideId "7905726"]
[WhiteElo "2231"]
[BlackElo "2554"]
[Result "1-0"]
[Round "01"]
[TimeControl "180+2"]
[Date "2023.02.14"]
[WhiteClock "0:00:10"]
[BlackClock "0:00:02"]

1. d4 {[%clk 0:02:58]}  f5 {[%clk 0:02:58]} 2. e4 {[%clk 0:02:56]}  fxe4 {[%clk 0:02:58]} 3. Nc3 {[%clk 0:02:56]}  Nf6 {[%clk 0:02:58]} 4. Bg5 {[%clk 0:02:56]}  g6 {[%clk 0:02:58]} 5. f3 {[%clk 0:02:52]}  d5 {[%clk 0:02:55]} 6. Bxf6 {[%clk 0:02:50]}  exf6 {[%clk 0:02:54]} 7. fxe4 {[%clk 0:02:51]}  dxe4 {[%clk 0:02:49]} 8. Nxe4 {[%clk 0:02:52]}  f5 {[%clk 0:02:45]} 9. Nc3 {[%clk 0:02:44]}  Be7 {[%clk 0:02:42]} 10. Bc4 {[%clk 0:02:41]}  Nc6 {[%clk 0:02:39]} 11. Nf3 {[%clk 0:02:39]}  Na5 {[%clk 0:02:38]} 12. Bb5+ {[%clk 0:02:28]}  c6 {[%clk 0:02:38]} 13. Bd3 {[%clk 0:02:19]}  O-O {[%clk 0:02:31]} 14. Qe2 {[%clk 0:02:19]}  b5 {[%clk 0:02:12]} 15. O-O-O {[%clk 0:02:13]}  Ba6 {[%clk 0:02:08]} 16. Qe6+ {[%clk 0:02:01]}  Kg7 {[%clk 0:02:03]} 17. h4 {[%clk 0:01:42]}  Rf6 {[%clk 0:01:33]} 18. Qe2 {[%clk 0:01:31]}  Bd6 {[%clk 0:01:00]} 19. h5 {[%clk 0:01:15]}  g5 {[%clk 0:00:58]} 20. h6+ {[%clk 0:00:55]}  Kh8 {[%clk 0:00:55]} 21. Kb1 {[%clk 0:00:54]}  Qg8 {[%clk 0:00:40]} 22. Rh5 {[%clk 0:00:48]}  g4 {[%clk 0:00:30]} 23. Ne5 {[%clk 0:00:43]}  Re8 {[%clk 0:00:27]} 24. Re1 {[%clk 0:00:31]}  Bxe5 {[%clk 0:00:12]} 25. dxe5 {[%clk 0:00:28]}  Nc4 {[%clk 0:00:12]} 26. Bxc4 {[%clk 0:00:20]}  bxc4 {[%clk 0:00:11]} 27. exf6 {[%clk 0:00:20]}  Rxe2 {[%clk 0:00:10]} 28. Rxe2 {[%clk 0:00:20]}  Bc8 {[%clk 0:00:08]} 29. Rg5 {[%clk 0:00:16]}  Qf8 {[%clk 0:00:06]} 30. Rg7 {[%clk 0:00:14]}  f4 {[%clk 0:00:06]} 31. f7 {[%clk 0:00:14]}  Bd7 {[%clk 0:00:03]} 32. Ne4 {[%clk 0:00:11]}  f3 {[%clk 0:00:03]} 33. Ng5 {[%clk 0:00:11]}  fxe2 {[%clk 0:00:02]} 34. Rxh7# {[%clk 0:00:10]} 1-0


[Site "https://www.chess.com"]

[Event "Titled Tuesday Blitz February 14 Late 2023"]
[White "Pham, Khoi"]
[Black "Zampronha, Wladimir Camilo"]
[WhiteFideId "1054988"]
[BlackFideId "2103087"]
[WhiteElo "2355"]
[BlackElo "2176"]
[Result "1-0"]
[Round "01"]
[TimeControl "180+2"]
[Date "2023.02.14"]
[WhiteClock "0:02:05"]
[BlackClock "0:01:17"]

1. c4 {[%clk 0:02:58]}  Nf6 {[%clk 0:02:59]} 2. Nf3 {[%clk 0:02:56]}  e6 {[%clk 0:03:00]} 3. g3 {[%clk 0:02:56]}  d5 {[%clk 0:03:00]} 4. Bg2 {[%clk 0:02:55]}  Be7 {[%clk 0:03:00]} 5. O-O {[%clk 0:02:55]}  O-O {[%clk 0:03:01]} 6. d4 {[%clk 0:02:55]}  dxc4 {[%clk 0:03:01]} 7. Qc2 {[%clk 0:02:51]}  a6 {[%clk 0:03:00]} 8. a4 {[%clk 0:02:50]}  Bd7 {[%clk 0:03:00]} 9. Qxc4 {[%clk 0:02:50]}  Bc6 {[%clk 0:03:00]} 10. Bg5 {[%clk 0:02:47]}  Bd5 {[%clk 0:02:59]} 11. Qc2 {[%clk 0:02:47]}  Be4 {[%clk 0:02:59]} 12. Qc1 {[%clk 0:02:46]}  c6 {[%clk 0:02:48]} 13. Nc3 {[%clk 0:02:45]}  Bxf3 {[%clk 0:02:49]} 14. Bxf3 {[%clk 0:02:43]}  Nd5 {[%clk 0:02:45]} 15. Bxe7 {[%clk 0:02:40]}  Qxe7 {[%clk 0:02:44]} 16. e4 {[%clk 0:02:39]}  Nxc3 {[%clk 0:02:44]} 17. bxc3 {[%clk 0:02:40]}  c5 {[%clk 0:02:43]} 18. Qb2 {[%clk 0:02:39]}  cxd4 {[%clk 0:02:41]} 19. cxd4 {[%clk 0:02:40]}  Nc6 {[%clk 0:02:39]} 20. Rab1 {[%clk 0:02:34]}  Rab8 {[%clk 0:02:33]} 21. Rfd1 {[%clk 0:02:33]}  Rfd8 {[%clk 0:02:32]} 22. d5 {[%clk 0:02:32]}  exd5 {[%clk 0:02:29]} 23. exd5 {[%clk 0:02:33]}  Ne5 {[%clk 0:02:29]} 24. Bg2 {[%clk 0:02:31]}  Rd6 {[%clk 0:02:25]} 25. Re1 {[%clk 0:02:30]}  Re8 {[%clk 0:01:40]} 26. f4 {[%clk 0:02:26]}  Nf3+ {[%clk 0:01:41]} 27. Bxf3 {[%clk 0:02:25]}  Qxe1+ {[%clk 0:01:42]} 28. Rxe1 {[%clk 0:02:25]}  Rxe1+ {[%clk 0:01:43]} 29. Kf2 {[%clk 0:02:25]}  Re7 {[%clk 0:01:42]} 30. Qc3 {[%clk 0:02:19]}  Red7 {[%clk 0:01:43]} 31. h4 {[%clk 0:02:16]}  g6 {[%clk 0:01:41]} 32. h5 {[%clk 0:02:15]}  gxh5 {[%clk 0:01:39]} 33. Qe5 {[%clk 0:02:14]}  Rd8 {[%clk 0:01:36]} 34. Qxh5 {[%clk 0:02:13]}  R6d7 {[%clk 0:01:33]} 35. Be4 {[%clk 0:02:12]}  f6 {[%clk 0:01:32]} 36. Bf5 {[%clk 0:02:12]}  Rc7 {[%clk 0:01:30]} 37. Be6+ {[%clk 0:02:12]}  Kg7 {[%clk 0:01:30]} 38. Qg4+ {[%clk 0:02:12]}  Kh8 {[%clk 0:01:29]} 39. Qf5 {[%clk 0:02:13]}  Rf8 {[%clk 0:01:29]} 40. d6 {[%clk 0:02:12]}  Rg7 {[%clk 0:01:25]} 41. d7 {[%clk 0:02:11]}  Re7 {[%clk 0:01:23]} 42. Qd5 {[%clk 0:02:09]}  Rd8 {[%clk 0:01:19]} 43. f5 {[%clk 0:02:08]}  Kg7 {[%clk 0:01:19]} 44. g4 {[%clk 0:02:07]}  Kf8 {[%clk 0:01:18]} 45. Qd4 {[%clk 0:02:06]}  Kg7 {[%clk 0:01:18]} 46. g5 {[%clk 0:02:05]}  Rf8 {[%clk 0:01:17]} 1-0


[Site "https://www.chess.com"]

[Event "Titled Tuesday Blitz February 14 Late 2023"]
[White "Dylag, Emilia"]
[Black "Djokic, Mihailo"]
[WhiteFideId "21805172"]
[BlackFideId "976440"]
[WhiteElo "2095"]
[BlackElo "2192"]
[Result "0-1"]
[Round "01"]
[TimeControl "180+2"]
[Date "2023.02.14"]
[WhiteClock "0:00:04"]
[BlackClock "0:00:29"]

1. d4 {[%clk 0:02:59]}  Nf6 {[%clk 0:02:58]} 2. c4 {[%clk 0:02:59]}  g6 {[%clk 0:02:58]} 3. g3 {[%clk 0:03:00]}  d5 {[%clk 0:02:57]} 4. cxd5 {[%clk 0:02:58]}  Bg7 {[%clk 0:02:56]} 5. Bg2 {[%clk 0:02:56]}  Nxd5 {[%clk 0:02:53]} 6. e4 {[%clk 0:02:56]}  Nb6 {[%clk 0:02:52]} 7. Ne2 {[%clk 0:02:56]}  c5 {[%clk 0:02:39]} 8. d5 {[%clk 0:02:41]}  O-O {[%clk 0:02:37]} 9. Nbc3 {[%clk 0:02:39]}  e6 {[%clk 0:02:37]} 10. O-O {[%clk 0:02:38]}  exd5 {[%clk 0:02:36]} 11. exd5 {[%clk 0:02:39]}  Re8 {[%clk 0:02:35]} 12. Be3 {[%clk 0:02:22]}  Na6 {[%clk 0:02:25]} 13. b3 {[%clk 0:02:18]}  Bg4 {[%clk 0:02:21]} 14. Rc1 {[%clk 0:02:16]}  Nb4 {[%clk 0:02:13]} 15. h3 {[%clk 0:01:55]}  Bxe2 {[%clk 0:02:04]} 16. Nxe2 {[%clk 0:01:56]}  Nxa2 {[%clk 0:02:03]} 17. Rxc5 {[%clk 0:01:52]}  Qd6 {[%clk 0:01:52]} 18. Rc2 {[%clk 0:01:47]}  Rxe3 {[%clk 0:01:39]} 19. fxe3 {[%clk 0:01:38]}  Nb4 {[%clk 0:01:39]} 20. Rc1 {[%clk 0:01:34]}  N6xd5 {[%clk 0:01:35]} 21. e4 {[%clk 0:01:30]}  Qb6+ {[%clk 0:01:35]} 22. Kh1 {[%clk 0:01:22]}  Ne3 {[%clk 0:01:35]} 23. Qd7 {[%clk 0:01:20]}  Nxf1 {[%clk 0:01:31]} 24. Rxf1 {[%clk 0:01:21]}  Rf8 {[%clk 0:01:29]} 25. e5 {[%clk 0:01:17]}  Bxe5 {[%clk 0:01:27]} 26. Qxb7 {[%clk 0:01:17]}  Qxb7 {[%clk 0:01:26]} 27. Bxb7 {[%clk 0:01:16]}  Rb8 {[%clk 0:01:27]} 28. Be4 {[%clk 0:01:15]}  f5 {[%clk 0:01:27]} 29. Bb1 {[%clk 0:01:07]}  Nd5 {[%clk 0:01:27]} 30. Rf3 {[%clk 0:01:03]}  Kg7 {[%clk 0:01:24]} 31. Kg2 {[%clk 0:01:02]}  Rb4 {[%clk 0:01:21]} 32. Rd3 {[%clk 0:01:00]}  Nf6 {[%clk 0:01:20]} 33. Re3 {[%clk 0:00:54]}  Bd6 {[%clk 0:01:20]} 34. Rd3 {[%clk 0:00:38]}  Bc5 {[%clk 0:01:18]} 35. Rc3 {[%clk 0:00:37]}  Bb6 {[%clk 0:01:17]} 36. Rd3 {[%clk 0:00:33]}  Kf7 {[%clk 0:01:06]} 37. Nf4 {[%clk 0:00:33]}  Ke7 {[%clk 0:01:01]} 38. Bc2 {[%clk 0:00:33]}  g5 {[%clk 0:00:58]} 39. Nd5+ {[%clk 0:00:32]}  Nxd5 {[%clk 0:00:58]} 40. Rxd5 {[%clk 0:00:33]}  f4 {[%clk 0:00:59]} 41. Rxg5 {[%clk 0:00:30]}  fxg3 {[%clk 0:00:59]} 42. Rxg3 {[%clk 0:00:29]}  h5 {[%clk 0:00:59]} 43. Rg5 {[%clk 0:00:28]}  h4 {[%clk 0:00:59]} 44. Rg4 {[%clk 0:00:28]}  Rb5 {[%clk 0:00:53]} 45. Rxh4 {[%clk 0:00:26]}  Rc5 {[%clk 0:00:54]} 46. Rc4 {[%clk 0:00:24]}  Rg5+ {[%clk 0:00:54]} 47. Kh2 {[%clk 0:00:21]}  Bg1+ {[%clk 0:00:53]} 48. Kh1 {[%clk 0:00:21]}  Bb6 {[%clk 0:00:53]} 49. h4 {[%clk 0:00:20]}  Re5 {[%clk 0:00:51]} 50. Kh2 {[%clk 0:00:20]}  Re2+ {[%clk 0:00:51]} 51. Kh3 {[%clk 0:00:20]}  Kf6 {[%clk 0:00:49]} 52. Kg4 {[%clk 0:00:18]}  Rh2 {[%clk 0:00:48]} 53. h5 {[%clk 0:00:17]}  Bf2 {[%clk 0:00:48]} 54. Rc6+ {[%clk 0:00:12]}  Ke5 {[%clk 0:00:48]} 55. h6 {[%clk 0:00:11]}  Kd5 {[%clk 0:00:39]} 56. Ra6 {[%clk 0:00:11]}  Be3 {[%clk 0:00:38]} 57. h7 {[%clk 0:00:11]}  Bd4 {[%clk 0:00:39]} 58. Kg5 {[%clk 0:00:09]}  Rxc2 {[%clk 0:00:38]} 59. Rxa7 {[%clk 0:00:05]}  Rg2+ {[%clk 0:00:31]} 60. Kh6 {[%clk 0:00:04]}  Rh2+ {[%clk 0:00:29]} 61. Kg6 {[%clk 0:00:04]}  Bxa7 {[%clk 0:00:29]} 62. Kg7 {[%clk 0:00:03]}  Bd4+ {[%clk 0:00:29]} 63. Kg8 {[%clk 0:00:04]}  Kc5 {[%clk 0:00:29]} 0-1


[Site "https://www.chess.com"]

[Event "Titled Tuesday Blitz February 14 Late 2023"]
[White "Aldokhin, Ivan"]
[Black "Torres Dominguez, David"]
[WhiteFideId "24115720"]
[BlackFideId "2220857"]
[WhiteElo "2413"]
[BlackElo "1994"]
[Result "1-0"]
[Round "01"]
[TimeControl "180+2"]
[Date "2023.02.14"]
[WhiteClock "0:00:09"]
[BlackClock "0:00:04"]

1. e4 {[%clk 0:02:58]}  Nc6 {[%clk 0:02:59]} 2. Nf3 {[%clk 0:02:58]}  e5 {[%clk 0:02:59]} 3. Bb5 {[%clk 0:02:57]}  Nge7 {[%clk 0:02:59]} 4. Nc3 {[%clk 0:02:56]}  g6 {[%clk 0:02:59]} 5. d4 {[%clk 0:02:57]}  exd4 {[%clk 0:02:59]} 6. Nd5 {[%clk 0:02:57]}  Bg7 {[%clk 0:02:59]} 7. Bg5 {[%clk 0:02:57]}  h6 {[%clk 0:03:00]} 8. Bf6 {[%clk 0:02:57]}  Bxf6 {[%clk 0:03:01]} 9. Nxf6+ {[%clk 0:02:56]}  Kf8 {[%clk 0:03:01]} 10. Nxd4 {[%clk 0:02:56]}  Nf5 {[%clk 0:02:58]} 11. exf5 {[%clk 0:02:34]}  Qxf6 {[%clk 0:02:49]} 12. Bxc6 {[%clk 0:02:29]}  dxc6 {[%clk 0:02:47]} 13. fxg6 {[%clk 0:02:28]}  Kg7 {[%clk 0:02:45]} 14. Ne2 {[%clk 0:01:49]}  fxg6 {[%clk 0:02:43]} 15. Qd4 {[%clk 0:01:38]}  Rd8 {[%clk 0:02:35]} 16. Qxf6+ {[%clk 0:01:35]}  Kxf6 {[%clk 0:02:34]} 17. Ng3 {[%clk 0:01:27]}  b6 {[%clk 0:02:28]} 18. O-O {[%clk 0:01:21]}  c5 {[%clk 0:02:24]} 19. Rfd1 {[%clk 0:01:13]}  Be6 {[%clk 0:02:16]} 20. a3 {[%clk 0:01:02]}  h5 {[%clk 0:02:09]} 21. h4 {[%clk 0:01:00]}  Rd4 {[%clk 0:02:02]} 22. f3 {[%clk 0:00:42]}  Rxh4 {[%clk 0:01:59]} 23. Ne4+ {[%clk 0:00:41]}  Ke5 {[%clk 0:01:52]} 24. Re1 {[%clk 0:00:38]}  Bf5 {[%clk 0:01:43]} 25. g3 {[%clk 0:00:32]}  Rxe4 {[%clk 0:01:43]} 26. fxe4 {[%clk 0:00:31]}  Bxe4 {[%clk 0:01:44]} 27. Rad1 {[%clk 0:00:30]}  Kf5 {[%clk 0:01:40]} 28. Rd7 {[%clk 0:00:27]}  Bxc2 {[%clk 0:01:36]} 29. Rxc7 {[%clk 0:00:24]}  Kg4 {[%clk 0:01:35]} 30. Re3 {[%clk 0:00:22]}  Bf5 {[%clk 0:01:33]} 31. Kf2 {[%clk 0:00:20]}  Rd8 {[%clk 0:01:27]} 32. Rxa7 {[%clk 0:00:18]}  Rd2+ {[%clk 0:01:19]} 33. Ke1 {[%clk 0:00:15]}  Rxb2 {[%clk 0:01:19]} 34. Rb7 {[%clk 0:00:13]}  c4 {[%clk 0:01:13]} 35. Rc7 {[%clk 0:00:09]}  b5 {[%clk 0:01:08]} 36. Rc5 {[%clk 0:00:08]}  h4 {[%clk 0:00:48]} 37. gxh4 {[%clk 0:00:08]}  Bd3 {[%clk 0:00:47]} 38. Rd5 {[%clk 0:00:06]}  Kf4 {[%clk 0:00:44]} 39. Re6 {[%clk 0:00:04]}  Bf5 {[%clk 0:00:40]} 40. Re2 {[%clk 0:00:03]}  c3 {[%clk 0:00:36]} 41. Kf2 {[%clk 0:00:03]}  c2 {[%clk 0:00:34]} 42. Rc5 {[%clk 0:00:03]}  Bd3 {[%clk 0:00:13]} 43. Rd2 {[%clk 0:00:03]}  Ke4 {[%clk 0:00:12]} 44. Rc3 {[%clk 0:00:03]}  Bc4 {[%clk 0:00:09]} 45. Rdxc2 {[%clk 0:00:03]}  Rxc2+ {[%clk 0:00:09]} 46. Rxc2 {[%clk 0:00:04]}  Kd3 {[%clk 0:00:09]} 47. Rc1 {[%clk 0:00:03]}  Be6 {[%clk 0:00:08]} 48. Kg3 {[%clk 0:00:04]}  Bf5 {[%clk 0:00:08]} 49. Kf4 {[%clk 0:00:04]}  Kd2 {[%clk 0:00:07]} 50. Rc5 {[%clk 0:00:04]}  Bd3 {[%clk 0:00:06]} 51. Rd5 {[%clk 0:00:04]}  Kc3 {[%clk 0:00:04]} 52. Rxd3+ {[%clk 0:00:04]}  Kxd3 {[%clk 0:00:04]} 53. Kg5 {[%clk 0:00:04]}  Kc3 {[%clk 0:00:05]} 54. Kxg6 {[%clk 0:00:05]}  Kb3 {[%clk 0:00:05]} 55. h5 {[%clk 0:00:06]}  Kxa3 {[%clk 0:00:06]} 56. h6 {[%clk 0:00:07]}  b4 {[%clk 0:00:06]} 57. h7 {[%clk 0:00:08]}  b3 {[%clk 0:00:07]} 58. h8=Q {[%clk 0:00:08]}  b2 {[%clk 0:00:07]} 59. Qc3+ {[%clk 0:00:09]}  Ka2 {[%clk 0:00:07]} 60. Qa5+ {[%clk 0:00:09]}  Kb1 {[%clk 0:00:07]} 61. Kf5 {[%clk 0:00:09]}  Kc2 {[%clk 0:00:08]} 62. Qc5+ {[%clk 0:00:09]}  Kd2 {[%clk 0:00:07]} 63. Qb4+ {[%clk 0:00:09]}  Kc1 {[%clk 0:00:07]} 64. Qc3+ {[%clk 0:00:09]}  Kb1 {[%clk 0:00:06]} 65. Ke4 {[%clk 0:00:09]}  Ka2 {[%clk 0:00:06]} 66. Qa5+ {[%clk 0:00:10]}  Kb3 {[%clk 0:00:06]} 67. Qb5+ {[%clk 0:00:10]}  Kc2 {[%clk 0:00:06]} 68. Qc4+ {[%clk 0:00:10]}  Kd2 {[%clk 0:00:05]} 69. Qb3 {[%clk 0:00:09]}  Kc1 {[%clk 0:00:04]} 70. Qc3+ {[%clk 0:00:10]}  Kd1 {[%clk 0:00:04]} 71. Qxb2 {[%clk 0:00:09]} 1-0


[Site "https://www.chess.com"]

[Event "Titled Tuesday Blitz February 14 Late 2023"]
[White "Stanisz, Patryk"]
[Black "Bayo Milagro, Alvaro"]
[WhiteFideId "1123106"]
[BlackFideId "22275240"]
[WhiteElo "2161"]
[BlackElo "2287"]
[Result "1/2-1/2"]
[Round "01"]
[TimeControl "180+2"]
[Date "2023.02.14"]
[WhiteClock "0:00:09"]
[BlackClock "0:00:18"]

1. d4 {[%clk 0:03:00]}  Nf6 {[%clk 0:02:47]} 2. c4 {[%clk 0:03:00]}  c5 {[%clk 0:02:47]} 3. Nf3 {[%clk 0:03:00]}  cxd4 {[%clk 0:02:43]} 4. Nxd4 {[%clk 0:03:01]}  Nc6 {[%clk 0:02:42]} 5. Nc3 {[%clk 0:03:00]}  g6 {[%clk 0:02:42]} 6. e4 {[%clk 0:03:00]}  d6 {[%clk 0:02:42]} 7. Be2 {[%clk 0:03:00]}  Bg7 {[%clk 0:02:43]} 8. Be3 {[%clk 0:02:59]}  O-O {[%clk 0:02:43]} 9. O-O {[%clk 0:02:59]}  Bd7 {[%clk 0:02:43]} 10. f3 {[%clk 0:02:57]}  Nxd4 {[%clk 0:02:43]} 11. Bxd4 {[%clk 0:02:57]}  a5 {[%clk 0:02:42]} 12. a4 {[%clk 0:02:50]}  Bc6 {[%clk 0:02:42]} 13. Qd2 {[%clk 0:02:50]}  Nd7 {[%clk 0:02:42]} 14. Be3 {[%clk 0:02:49]}  Nc5 {[%clk 0:02:40]} 15. Qc2 {[%clk 0:02:44]}  Qb6 {[%clk 0:02:39]} 16. Nb5 {[%clk 0:02:24]}  Rfc8 {[%clk 0:02:34]} 17. Rac1 {[%clk 0:02:20]}  Qd8 {[%clk 0:02:33]} 18. b3 {[%clk 0:02:16]}  Qf8 {[%clk 0:02:32]} 19. Rcd1 {[%clk 0:02:09]}  Bh6 {[%clk 0:02:27]} 20. Bd4 {[%clk 0:02:04]}  Ne6 {[%clk 0:02:26]} 21. Bf2 {[%clk 0:02:03]}  Nf4 {[%clk 0:02:17]} 22. Rfe1 {[%clk 0:01:56]}  Nxe2+ {[%clk 0:02:16]} 23. Rxe2 {[%clk 0:01:55]}  Bf4 {[%clk 0:02:09]} 24. g3 {[%clk 0:01:36]}  Be5 {[%clk 0:02:08]} 25. Qd3 {[%clk 0:01:32]}  Bxb5 {[%clk 0:02:05]} 26. axb5 {[%clk 0:01:30]}  a4 {[%clk 0:02:05]} 27. b4 {[%clk 0:01:05]}  a3 {[%clk 0:01:47]} 28. Bd4 {[%clk 0:01:05]}  Qg7 {[%clk 0:01:44]} 29. Ra2 {[%clk 0:01:02]}  Ra4 {[%clk 0:01:34]} 30. Bxe5 {[%clk 0:00:13]}  Qxe5 {[%clk 0:01:35]} 31. Rxa3 {[%clk 0:00:14]}  Rxa3 {[%clk 0:01:35]} 32. Qxa3 {[%clk 0:00:15]}  Rxc4 {[%clk 0:01:35]} 33. Qa8+ {[%clk 0:00:13]}  Kg7 {[%clk 0:01:35]} 34. Qxb7 {[%clk 0:00:13]}  Rc2 {[%clk 0:01:34]} 35. Qd5 {[%clk 0:00:12]}  Qb2 {[%clk 0:00:58]} 36. Qd4+ {[%clk 0:00:11]}  f6 {[%clk 0:00:59]} 37. Qxb2 {[%clk 0:00:11]}  Rxb2 {[%clk 0:01:00]} 38. Rd4 {[%clk 0:00:10]}  Rc2 {[%clk 0:00:57]} 39. b6 {[%clk 0:00:07]}  Rc6 {[%clk 0:00:56]} 40. b5 {[%clk 0:00:04]}  Rxb6 {[%clk 0:00:56]} 41. Rb4 {[%clk 0:00:05]}  Kf7 {[%clk 0:00:54]} 42. Kf2 {[%clk 0:00:06]}  Ke6 {[%clk 0:00:55]} 43. Ke3 {[%clk 0:00:06]}  Kd7 {[%clk 0:00:55]} 44. Kd4 {[%clk 0:00:07]}  e6 {[%clk 0:00:54]} 45. f4 {[%clk 0:00:07]}  Kc7 {[%clk 0:00:53]} 46. g4 {[%clk 0:00:07]}  Rb8 {[%clk 0:00:53]} 47. h4 {[%clk 0:00:07]}  Kb6 {[%clk 0:00:53]} 48. h5 {[%clk 0:00:07]}  gxh5 {[%clk 0:00:52]} 49. gxh5 {[%clk 0:00:07]}  Rg8 {[%clk 0:00:51]} 50. f5 {[%clk 0:00:08]}  exf5 {[%clk 0:00:50]} 51. exf5 {[%clk 0:00:07]}  Rg5 {[%clk 0:00:25]} 52. Kd5 {[%clk 0:00:06]}  Rxf5+ {[%clk 0:00:22]} 53. Kxd6 {[%clk 0:00:06]}  Rxh5 {[%clk 0:00:23]} 54. Ke6 {[%clk 0:00:07]}  f5 {[%clk 0:00:20]} 55. Kf6 {[%clk 0:00:07]}  Kc5 {[%clk 0:00:17]} 56. Rb2 {[%clk 0:00:06]}  f4 {[%clk 0:00:14]} 57. b6 {[%clk 0:00:05]}  Rh6+ {[%clk 0:00:15]} 58. Kg5 {[%clk 0:00:06]}  Rxb6 {[%clk 0:00:15]} 59. Rxb6 {[%clk 0:00:05]}  Kxb6 {[%clk 0:00:16]} 60. Kxf4 {[%clk 0:00:06]}  Kc5 {[%clk 0:00:16]} 61. Kg5 {[%clk 0:00:07]}  Kd4 {[%clk 0:00:17]} 62. Kh6 {[%clk 0:00:08]}  Ke3 {[%clk 0:00:18]} 63. Kxh7 {[%clk 0:00:09]} 1/2-1/2


[Site "https://www.chess.com"]

[Event "Titled Tuesday Blitz February 14 Late 2023"]
[White "Richter, Paul"]
[Black "Wang, Alexander J"]
[WhiteFideId "2046350"]
[BlackFideId "30955270"]
[WhiteElo "2171"]
[BlackElo "1815"]
[Result "1-0"]
[Round "01"]
[TimeControl "180+2"]
[Date "2023.02.14"]
[WhiteClock "0:00:19"]
[BlackClock "0:00:11"]

1. e4 {[%clk 0:02:57]}  c5 {[%clk 0:02:46]} 2. Nf3 {[%clk 0:02:56]}  d6 {[%clk 0:02:46]} 3. d4 {[%clk 0:02:52]}  cxd4 {[%clk 0:02:47]} 4. Nxd4 {[%clk 0:02:52]}  Nf6 {[%clk 0:02:47]} 5. Nc3 {[%clk 0:02:53]}  g6 {[%clk 0:02:46]} 6. Be3 {[%clk 0:02:52]}  Bg7 {[%clk 0:02:24]} 7. f3 {[%clk 0:02:50]}  O-O {[%clk 0:02:14]} 8. Qd2 {[%clk 0:02:45]}  Nc6 {[%clk 0:02:09]} 9. O-O-O {[%clk 0:02:45]}  d5 {[%clk 0:02:08]} 10. Qe1 {[%clk 0:02:44]}  e5 {[%clk 0:02:07]} 11. Nxc6 {[%clk 0:02:44]}  bxc6 {[%clk 0:02:08]} 12. exd5 {[%clk 0:02:44]}  Nxd5 {[%clk 0:02:07]} 13. Bc4 {[%clk 0:02:44]}  Be6 {[%clk 0:02:07]} 14. Ne4 {[%clk 0:02:43]}  f5 {[%clk 0:01:19]} 15. Ng5 {[%clk 0:02:18]}  Bf7 {[%clk 0:01:17]} 16. Nxf7 {[%clk 0:02:17]}  Rxf7 {[%clk 0:01:18]} 17. Bb3 {[%clk 0:01:48]}  Rd7 {[%clk 0:00:43]} 18. Bc5 {[%clk 0:01:43]}  a5 {[%clk 0:00:39]} 19. g4 {[%clk 0:01:14]}  fxg4 {[%clk 0:00:36]} 20. fxg4 {[%clk 0:01:15]}  a4 {[%clk 0:00:33]} 21. Bc4 {[%clk 0:01:11]}  Kh8 {[%clk 0:00:30]} 22. h4 {[%clk 0:01:03]}  a3 {[%clk 0:00:25]} 23. b3 {[%clk 0:01:00]}  e4 {[%clk 0:00:22]} 24. Bd4 {[%clk 0:00:45]}  Nf6 {[%clk 0:00:20]} 25. Qg1 {[%clk 0:00:24]}  c5 {[%clk 0:00:18]} 26. Bxc5 {[%clk 0:00:19]}  Rxd1+ {[%clk 0:00:17]} 27. Qxd1 {[%clk 0:00:20]}  Qxd1+ {[%clk 0:00:15]} 28. Rxd1 {[%clk 0:00:21]}  Nxg4 {[%clk 0:00:15]} 29. Re1 {[%clk 0:00:20]}  Re8 {[%clk 0:00:14]} 30. Bxa3 {[%clk 0:00:19]}  Bh6+ {[%clk 0:00:13]} 31. Kb1 {[%clk 0:00:19]}  Bd2 {[%clk 0:00:11]} 32. Bb2+ {[%clk 0:00:19]} 1-0


[Site "https://www.chess.com"]

[Event "Titled Tuesday Blitz February 14 Late 2023"]
[White "mestrefeitosa19"]
[Black "Machidon, Cristi"]
[BlackFideId "13904590"]
[WhiteElo "2187"]
[BlackElo "2301"]
[Result "0-1"]
[Round "01"]
[TimeControl "180+2"]
[Date "2023.02.14"]
[WhiteClock "0:00:13"]
[BlackClock "0:00:39"]

1. c4 {[%clk 0:03:00]}  Nc6 {[%clk 0:02:59]} 2. Nc3 {[%clk 0:03:00]}  e5 {[%clk 0:03:00]} 3. Nf3 {[%clk 0:03:00]}  Nf6 {[%clk 0:03:00]} 4. e3 {[%clk 0:03:01]}  Bb4 {[%clk 0:03:00]} 5. d4 {[%clk 0:03:01]}  Bxc3+ {[%clk 0:02:57]} 6. bxc3 {[%clk 0:03:00]}  d6 {[%clk 0:02:58]} 7. Be2 {[%clk 0:02:58]}  O-O {[%clk 0:02:57]} 8. O-O {[%clk 0:02:59]}  h6 {[%clk 0:02:55]} 9. a4 {[%clk 0:02:58]}  Bf5 {[%clk 0:02:54]} 10. Nd2 {[%clk 0:02:48]}  Re8 {[%clk 0:02:45]} 11. f3 {[%clk 0:02:23]}  exd4 {[%clk 0:02:20]} 12. cxd4 {[%clk 0:02:00]}  Rxe3 {[%clk 0:02:02]} 13. Ne4 {[%clk 0:02:00]}  Rxe2 {[%clk 0:01:59]} 14. Qxe2 {[%clk 0:01:56]}  Bxe4 {[%clk 0:01:24]} 15. fxe4 {[%clk 0:01:54]}  Nxd4 {[%clk 0:01:24]} 16. Qb2 {[%clk 0:01:47]}  c5 {[%clk 0:01:18]} 17. Qxb7 {[%clk 0:01:31]}  Rb8 {[%clk 0:01:07]} 18. Qxa7 {[%clk 0:01:31]}  Qe8 {[%clk 0:00:59]} 19. Bxh6 {[%clk 0:01:23]}  Rb2 {[%clk 0:00:46]} 20. Bf4 {[%clk 0:01:00]}  Qxe4 {[%clk 0:00:43]} 21. Rf2 {[%clk 0:00:25]}  Rxf2 {[%clk 0:00:41]} 22. Kxf2 {[%clk 0:00:26]}  Qxf4+ {[%clk 0:00:40]} 23. Kg1 {[%clk 0:00:27]}  Ng4 {[%clk 0:00:40]} 24. Qa8+ {[%clk 0:00:19]}  Kh7 {[%clk 0:00:39]} 25. h3 {[%clk 0:00:13]}  Ne2+ {[%clk 0:00:39]} 0-1


[Site "https://www.chess.com"]